bitfinex-derivatives/quotes_BTCF0:USTF0_20241227
["timestamp","ask_amount","ask_price","bid_price","bid_amount"]
[1735309891022,0.15522434,96210.0,96198.0,0.004]
[1735309891219,0.15522434,96210.0,96209.0,0.052029]
[1735309891415,0.001,96210.0,96209.0,0.052029]
[1735309891812,0.052026,96216.0,96209.0,0.052029]
[1735309892209,0.002,96210.0,96209.0,0.052029]
[1735309892615,0.15422719,96251.0,96209.0,0.3]
[1735309892817,0.15370718,96251.0,96244.0,0.05201]
[1735309893029,0.051999,96265.0,96230.0,0.15522434]
[1735309893220,0.15522434,96260.0,96249.0,0.052007]
[1735309893415,0.0496,96267.0,96212.0,0.052027]
[1735309893416,0.052011,96244.0,96212.0,0.052027]
[1735309893621,0.0496,96267.0,96231.0,0.052017]
[1735309893622,0.15522434,96240.0,96231.0,0.052017]
[1735309893821,0.15522434,96250.0,96231.0,0.052017]
[1735309894016,0.05201,96246.0,96210.0,0.30112434]
[1735309894225,0.15522434,96260.0,96240.0,0.052013]
[1735309894422,0.001,96246.0,96210.0,0.30112434]
[1735309894620,0.052014,96239.0,96231.0,0.052017]
[1735309894823,0.052014,96237.0,96231.0,0.052017]
[1735309895123,0.05201,96245.0,96211.0,0.052028]
[1735309895325,0.15922434,96260.0,96220.0,0.15522434]
[1735309895518,0.003,96250.0,96223.0,0.052022]
[1735309895720,0.003,96250.0,96241.0,0.052012]
[1735309896817,0.003,96250.0,96242.0,0.052011]
[1735309897018,0.052007,96252.0,96242.0,0.052011]
[1735309897218,0.052007,96250.0,96242.0,0.052011]
[1735309897428,0.052007,96250.0,96223.0,0.003]
[1735309897429,0.052011,96244.0,96234.0,0.052016]
[1735309897722,0.052011,96244.0,96223.0,0.003]
[1735309897928,0.052011,96244.0,96224.0,0.0113248]
[1735309898224,0.052011,96244.0,96220.0,0.15522434]
[1735309898424,0.052011,96244.0,96221.0,0.01132515]
[1735309898622,0.052012,96242.0,96232.0,0.052017]
[1735309898823,0.15622434,96250.0,96234.0,0.001]
[1735309899017,0.15522434,96250.0,96234.0,0.001]
[1735309899227,0.051997,96269.0,96234.0,0.001]
[1735309899228,0.15522434,96260.0,96234.0,0.001]
[1735309899528,0.052008,96250.0,96237.0,0.052014]
[1735309899918,0.001,96242.0,96234.0,0.001]
[1735309900130,0.001,96242.0,96238.0,0.052014]
[1735309900327,0.001,96242.0,96220.0,0.16122434]
[1735309900529,0.001,96242.0,96240.0,0.052012]
[1735309901025,0.051997,96269.0,96259.0,0.052002]
[1735309901214,0.12295395,96272.0,96250.0,0.15522434]
[1735309901524,0.12295395,96272.0,96262.0,0.052]
[1735309901723,0.27817829,96272.0,96241.0,0.0943]
[1735309901928,0.003,96250.0,96242.0,0.01131591]
[1735309902120,0.003,96250.0,96243.0,0.06332691]
[1735309902315,0.003,96250.0,96229.0,0.052018]
[1735309902316,0.052012,96241.0,96229.0,0.052018]
[1735309902517,0.15822434,96250.0,96229.0,0.052018]
[1735309902730,0.052015,96235.0,96228.0,0.24753026]
[1735309902921,0.15522434,96250.0,96228.0,0.24753026]
[1735309903123,0.052011,96243.0,96233.0,0.052016]
[1735309903324,0.15522434,96260.0,96228.0,0.24753026]
[1735309903524,0.006,96269.0,96230.0,0.15522434]
[1735309903723,0.052004,96256.0,96243.0,0.052011]
[1735309903924,0.15522434,96260.0,96243.0,0.052011]
[1735309904123,0.052009,96248.0,96243.0,0.052011]
[1735309904320,0.002,96250.0,96220.0,0.00155865]
[1735309904522,0.15522434,96240.0,96230.0,0.003]
[1735309904828,0.052017,96233.0,96230.0,0.003]
[1735309905029,0.052018,96230.0,96225.0,0.052021]
[1735309905232,0.052022,96222.0,96220.0,0.00155865]
[1735309905529,0.052027,96214.0,96213.0,0.24753026]
[1735309905736,0.0468,96221.0,96202.0,0.00084]
[1735309905926,0.052031,96206.0,96200.0,0.052034]
[1735309906229,0.052027,96214.0,96193.0,0.24753026]
[1735309906431,0.15522434,96230.0,96216.0,0.052026]
[1735309906432,0.052022,96222.0,96216.0,0.052026]
[1735309906627,0.052018,96231.0,96221.0,0.052023]
[1735309906816,0.052018,96231.0,96226.0,0.05202]
[1735309907019,0.12295395,96229.0,96226.0,0.05202]
[1735309907216,0.12295395,96229.0,96202.0,0.0484]
[1735309907431,0.17497295,96229.0,96202.0,0.0484]
[1735309907628,0.12295395,96229.0,96202.0,0.0484]
[1735309907822,0.052021,96226.0,96202.0,0.0484]
[1735309908525,0.052021,96226.0,96218.0,0.052024]
[1735309909033,0.15522434,96230.0,96202.0,0.0514]
[1735309909230,0.052019,96229.0,96217.0,0.052025]
[1735309909434,0.052019,96229.0,96223.0,0.052022]
[1735309909628,0.001,96226.0,96223.0,0.052022]
[1735309910131,0.052024,96220.0,96212.0,0.052028]
[1735309911426,0.002,96229.0,96202.0,0.0484]
[1735309911624,0.001,96220.0,96202.0,0.0484]
[1735309911933,0.002,96220.0,96217.0,0.052025]
[1735309912431,0.002,96220.0,96218.0,0.052024]
[1735309912627,0.001,96220.0,96218.0,0.052024]
[1735309913032,0.09249691,96227.0,96219.0,0.052024]
[1735309913236,0.09249691,96228.0,96219.0,0.052024]
[1735309913730,0.003,96220.0,96219.0,0.052024]
[1735309914234,0.002,96220.0,96219.0,0.052024]
[1735309914637,0.052026,96215.0,96196.0,0.24753026]
[1735309914939,0.15722434,96220.0,96202.0,0.052033]
[1735309915234,0.052028,96212.0,96205.0,0.052031]
[1735309916722,0.052028,96212.0,96205.0,0.053031]
[1735309919721,0.09249691,96215.0,96206.0,0.052031]
[1735309919927,0.12295395,96217.0,96205.0,0.001]
[1735309920127,0.12295395,96217.0,96215.0,0.052026]
[1735309921429,0.09272344,96226.0,96215.0,0.052026]
[1735309921631,0.09272344,96226.0,96225.0,0.052021]
[1735309922426,0.09272344,96226.0,96200.0,0.25811233]
[1735309922630,0.004,96217.0,96209.0,0.052029]
[1735309922830,0.052028,96213.0,96205.0,0.24753026]
[1735309923427,0.15522434,96220.0,96205.0,0.24753026]
[1735309923641,0.052031,96206.0,96205.0,0.24753026]
[1735309924336,0.052037,96196.0,96190.0,0.00084]
[1735309924529,0.052037,96196.0,96183.0,0.24753026]
[1735309924530,0.052037,96196.0,96186.0,0.052041]
[1735309924939,0.15522434,96200.0,96183.0,0.24753026]
[1735309925129,0.05204,96191.0,96183.0,0.24753026]
[1735309925526,0.052034,96200.0,96190.0,0.003]
[1735309925724,0.09272344,96199.0,96198.0,0.052035]
[1735309926428,0.09272344,96199.0,96190.0,0.003]
[1735309926632,0.09272344,96199.0,96195.0,0.052037]
[1735309926834,0.09272344,96199.0,96198.0,0.004]
[1735309927138,0.052032,96204.0,96198.0,0.004]
[1735309927440,0.09272344,96216.0,96198.0,0.004]
[1735309927735,0.052029,96210.0,96201.0,0.052034]
[1735309927928,0.05203,96209.0,96198.0,0.004]
[1735309928130,0.05203,96208.0,96198.0,0.004]
[1735309928439,0.24794778,96210.0,96198.0,0.004]
[1735309928637,0.052032,96206.0,96198.0,0.004]
[1735309929035,0.052032,96206.0,96198.0,0.001]
[1735309929232,0.052032,96206.0,96198.0,0.005]
[1735309929432,0.052035,96200.0,96198.0,0.005]
[1735309930044,0.0507,96199.0,96198.0,0.005]
[1735309930538,0.15522434,96190.0,96176.0,0.052047]
[1735309930743,0.052044,96183.0,96176.0,0.052047]
[1735309931136,0.15522434,96190.0,96176.0,0.052047]
[1735309931440,0.0507,96199.0,96170.0,0.05205]
[1735309931441,0.052041,96189.0,96170.0,0.05205]
[1735309931641,0.09272344,96187.0,96178.0,0.052046]
[1735309931845,0.14476544,96187.0,96178.0,0.052046]
[1735309932444,0.09272344,96186.0,96181.0,0.052045]
[1735309932943,0.09272344,96186.0,96184.0,0.052043]
[1735309933735,0.09372344,96186.0,96184.0,0.052043]
[1735309934248,0.001,96186.0,96184.0,0.052043]
[1735309934547,0.001,96186.0,96185.0,0.0468]
[1735309935740,0.001,96186.0,96184.0,0.055043]
[1735309935741,0.052037,96196.0,96184.0,0.055043]
[1735309935947,0.001,96186.0,96184.0,0.012]
[1735309936244,0.052042,96185.0,96184.0,0.012]
[1735309936449,0.052042,96185.0,96184.0,0.003]
[1735309936744,0.001,96186.0,96184.0,0.003]
[1735309937049,0.09272344,96192.0,96184.0,0.055043]
[1735309937341,0.001,96186.0,96185.0,0.003]
[1735309938034,0.001,96186.0,96184.0,0.065043]
[1735309938240,0.09372344,96186.0,96184.0,0.013]
[1735309938537,0.09372344,96186.0,96184.0,0.065042]
[1735309938735,0.09272344,96186.0,96184.0,0.056042]
[1735309938936,0.001,96185.0,96184.0,0.065042]
[1735309939336,0.09272344,96186.0,96184.0,0.056042]
[1735309939536,0.14576544,96186.0,96184.0,0.013]
[1735309939850,0.053042,96186.0,96184.0,0.009]
[1735309940048,0.052042,96186.0,96185.0,0.003]
[1735309940741,0.052044,96183.0,96173.0,0.052049]
[1735309941641,0.053042,96186.0,96185.0,0.003]
[1735309942239,0.053042,96186.0,96185.0,0.011]
[1735309943949,0.053042,96186.0,96185.0,0.008]
[1735309944340,0.053042,96186.0,96173.0,0.006]
[1735309944647,0.05205,96171.0,96157.0,0.0498]
[1735309944846,0.15522434,96183.0,96157.0,0.0498]
[1735309944847,0.052045,96181.0,96157.0,0.0498]
[1735309945046,0.001,96186.0,96160.0,0.15522434]
[1735309945237,0.001,96186.0,96157.0,0.0498]
[1735309945445,0.052049,96174.0,96173.0,0.006]
[1735309945835,0.15522434,96180.0,96173.0,0.006]
[1735309946042,0.12343883,96176.0,96173.0,0.006]
[1735309946351,0.12343883,96176.0,96174.0,0.052048]
[1735309946940,0.12343883,96176.0,96174.0,0.102748]
[1735309947335,0.001,96180.0,96174.0,0.0507]
[1735309947642,0.001,96180.0,96179.0,0.052046]
[1735309948638,0.1965347,96190.0,96181.0,0.052044]
[1735309948838,0.001,96180.0,96174.0,0.066048]
[1735309949349,0.002,96180.0,96179.0,0.009]
[1735309949744,0.002,96180.0,96177.0,0.052046]
[1735309949745,0.001,96180.0,96178.0,0.052046]
[1735309950147,0.0925877,96183.0,96178.0,0.052046]
[1735309950364,0.0925877,96183.0,96179.0,0.004]
[1735309950855,0.0925877,96183.0,96182.0,0.052044]
[1735309951149,0.0925877,96184.0,96182.0,0.052044]
[1735309952055,0.0170877,96184.0,96182.0,0.059044]
[1735309952245,0.18443093,96204.0,96188.0,0.052041]
[1735309952552,0.18443093,96204.0,96203.0,0.052033]
[1735309953554,0.103947,96230.0,96224.0,0.052021]
[1735309953761,0.00056001,96232.0,96210.0,0.155976]
[1735309954057,0.103947,96240.0,96239.0,0.052013]
[1735309954240,0.103947,96240.0,96219.0,0.052024]
[1735309954241,0.21516942,96248.0,96245.0,0.05201]
[1735309954549,0.21516942,96248.0,96211.0,0.097]
[1735309954550,0.21516942,96248.0,96214.0,0.052026]
[1735309954753,0.002,96204.0,96203.0,0.052033]
[1735309955453,0.0491,96220.0,96203.0,0.052033]
[1735309955454,0.0491,96220.0,96218.0,0.18651005]
[1735309955752,0.0981,96229.0,96226.0,0.05202]
[1735309956454,0.0981,96229.0,96218.0,0.18651005]
[1735309956651,0.0475,96229.0,96218.0,0.18651005]
[1735309957148,0.0475,96229.0,96217.0,0.052025]
[1735309957548,0.0525,96229.0,96217.0,0.052025]
[1735309958152,0.0475,96229.0,96196.0,0.18651005]
[1735309958457,0.052025,96218.0,96196.0,0.18651005]
[1735309958647,0.0471,96217.0,96206.0,0.052031]
[1735309959245,0.0471,96217.0,96198.0,0.052035]
[1735309959452,0.052034,96202.0,96198.0,0.052035]
[1735309960451,0.15577579,96210.0,96189.0,0.18651005]
[1735309960755,0.15577579,96200.0,96181.0,0.18651005]
[1735309960942,0.052042,96187.0,96181.0,0.18651005]
[1735309961864,0.052043,96185.0,96181.0,0.18651005]
[1735309962058,0.15577579,96210.0,96181.0,0.18651005]
[1735309962363,0.052029,96210.0,96200.0,0.052034]
[1735309962546,0.0505,96215.0,96184.0,0.0506]
[1735309962752,0.052031,96207.0,96199.0,0.052035]
[1735309962953,0.052031,96207.0,96189.0,0.002]
[1735309963262,0.052031,96207.0,96202.0,0.052033]
[1735309963656,0.0505,96215.0,96204.0,0.052032]
[1735309963859,0.15577579,96230.0,96215.0,0.052031]
[1735309964052,0.15577579,96230.0,96190.0,0.15577579]
[1735309964253,0.15577579,96220.0,96210.0,0.052034]
[1735309964561,0.15577579,96220.0,96184.0,0.0506]
[1735309964763,0.15577579,96220.0,96211.0,0.052033]
[1735309965057,0.15577579,96220.0,96184.0,0.3506]
[1735309965058,0.052035,96208.0,96198.0,0.05204]
[1735309965263,0.052023,96231.0,96198.0,0.05204]
[1735309965264,0.052037,96205.0,96198.0,0.05204]
[1735309966360,0.053037,96205.0,96198.0,0.05204]
[1735309967163,0.001,96205.0,96190.0,0.15577579]
[1735309967368,0.001,96205.0,96204.0,0.052037]
[1735309968464,0.052024,96229.0,96204.0,0.052037]
[1735309968765,0.046,96234.0,96200.0,0.15577579]
[1735309968967,0.046,96234.0,96210.0,0.15577579]
[1735309969165,0.052016,96244.0,96233.0,0.052022]
[1735309969368,0.052016,96244.0,96211.0,0.0974]
[1735309969568,0.052016,96244.0,96237.0,0.052019]
[1735309970071,0.20177579,96250.0,96211.0,0.0974]
[1735309970261,0.15577579,96230.0,96227.0,0.052025]
[1735309970466,0.052019,96238.0,96227.0,0.052025]
[1735309970866,0.15577579,96240.0,96227.0,0.052025]
[1735309970867,0.052021,96234.0,96227.0,0.052025]
[1735309971668,0.055021,96234.0,96227.0,0.052025]
[1735309971855,0.052022,96233.0,96227.0,0.052025]
[1735309972257,0.052022,96233.0,96227.0,0.053025]
[1735309972972,0.052022,96233.0,96227.0,0.054025]
[1735309973369,0.003,96233.0,96227.0,0.002]
[1735309973566,0.052024,96228.0,96227.0,0.001]
[1735309973764,0.052024,96228.0,96227.0,0.002]
[1735309975261,0.003,96228.0,96199.0,0.0469]
[1735309975565,0.0507,96227.0,96210.0,0.052034]
[1735309975767,0.052026,96225.0,96203.0,0.052038]
[1735309975971,0.052032,96214.0,96205.0,0.052036]
[1735309976161,0.052033,96212.0,96205.0,0.052036]
[1735309976664,0.0476,96224.0,96193.0,0.18651005]
[1735309976870,0.10388833,96220.0,96193.0,0.18651005]
[1735309977069,0.052032,96215.0,96193.0,0.18651005]
[1735309977261,0.001,96214.0,96193.0,0.18651005]
[1735309977456,0.052036,96206.0,96198.0,0.05204]
[1735309977665,0.052036,96206.0,96199.0,0.05204]
[1735309979071,0.054036,96206.0,96188.0,0.0474]
[1735309979267,0.054036,96206.0,96193.0,0.001]
[1735309979472,0.002,96206.0,96205.0,0.052037]
[1735309979771,0.18481913,96224.0,96223.0,0.052027]
[1735309980558,0.052023,96231.0,96220.0,0.052028]
[1735309980868,0.052029,96220.0,96216.0,0.052031]
[1735309981062,0.052035,96208.0,96198.0,0.05204]
[1735309981267,0.005,96224.0,96192.0,0.18651005]
[1735309981268,0.052035,96209.0,96201.0,0.052039]
[1735309981569,0.002,96206.0,96201.0,0.052039]
[1735309981765,0.002,96206.0,96202.0,0.24753026]
[1735309981959,0.052037,96206.0,96202.0,0.24753026]
[1735309982161,0.052038,96203.0,96202.0,0.24753026]
[1735309983069,0.052045,96191.0,96187.0,0.00092]
[1735309983261,0.052045,96191.0,96182.0,0.052049]
[1735309983960,0.052045,96191.0,96178.0,0.18666126]
[1735309984162,0.052041,96198.0,96191.0,0.052044]
[1735309984363,0.001,96203.0,96178.0,0.18666126]
[1735309984364,0.15589504,96201.0,96180.0,0.05205]
[1735309984562,0.052044,96192.0,96183.0,0.052048]
[1735309984763,0.052045,96190.0,96183.0,0.052048]
[1735309984958,0.15589504,96193.0,96175.0,0.052053]
[1735309985158,0.05205,96181.0,96175.0,0.052053]
[1735309985568,0.15589504,96193.0,96173.0,0.18666126]
[1735309985874,0.052046,96188.0,96182.0,0.006]
[1735309986172,0.1541454,96201.0,96199.0,0.05204]
[1735309986758,0.1541454,96201.0,96183.0,0.0521]
[1735309986963,0.1541454,96201.0,96192.0,0.052044]
[1735309987167,0.15589504,96209.0,96192.0,0.052044]
[1735309987367,0.15589504,96209.0,96186.0,0.18666126]
[1735309987564,0.15589504,96200.0,96186.0,0.18666126]
[1735309987766,0.31179008,96200.0,96186.0,0.18666126]
[1735309987967,0.052046,96188.0,96186.0,0.18666126]
[1735309988572,0.052046,96188.0,96186.0,0.19066126]
[1735309988775,0.052046,96188.0,96186.0,0.004]
[1735309989161,0.052051,96180.0,96173.0,0.18666126]
[1735309989574,0.15589504,96183.0,96173.0,0.18666126]
[1735309989972,0.052053,96175.0,96173.0,0.18666126]
[1735309990271,0.052053,96175.0,96173.0,0.19166126]
[1735309990461,0.052058,96167.0,96159.0,0.00155981]
[1735309990666,0.15689504,96180.0,96159.0,0.00155981]
[1735309990877,0.052054,96174.0,96173.0,0.009]
[1735309991369,0.052061,96160.0,96159.0,0.00155981]
[1735309991667,0.20795104,96169.0,96160.0,0.052061]
[1735309991870,0.052057,96167.0,96160.0,0.052061]
[1735309992373,0.052057,96167.0,96161.0,0.05206]
[1735309992566,0.15589504,96169.0,96159.0,0.00155981]
[1735309992879,0.052061,96160.0,96159.0,0.00155981]
[1735309993174,0.15589504,96169.0,96159.0,0.00155981]
[1735309993675,0.15589504,96169.0,96161.0,0.003]
[1735309993873,0.05206,96162.0,96161.0,0.003]
[1735309994263,0.052072,96140.0,96139.0,0.18666126]
[1735309994672,0.352072,96140.0,96119.0,0.31058065]
[1735309994868,0.052083,96120.0,96119.0,0.31058065]
[1735309995077,0.20797304,96129.0,96119.0,0.31058065]
[1735309995271,0.0514,96139.0,96123.0,0.052081]
[1735309995470,0.15589504,96130.0,96124.0,0.0474]
[1735309995676,0.15589504,96130.0,96119.0,0.31058065]
[1735309995868,0.052081,96124.0,96119.0,0.31058065]
[1735309996068,0.052083,96121.0,96119.0,0.31058065]
[1735309996279,0.15589504,96130.0,96090.0,0.49506052]
[1735309996280,0.10402471,96123.0,96090.0,0.49506052]
[1735309996474,0.052095,96098.0,96090.0,0.49506052]
[1735309996667,0.15589504,96110.0,96088.0,0.23716134]
[1735309996668,0.052099,96091.0,96088.0,0.23716134]
[1735309996873,0.15589504,96098.0,96083.0,0.00052]
[1735309997073,0.052091,96106.0,96045.0,0.43382797]
[1735309997277,0.15589504,96055.0,96045.0,0.43382797]
[1735309997469,0.15589504,96055.0,96053.0,0.052119]
[1735309997673,0.15589504,96070.0,96045.0,0.43382797]
[1735309997870,0.15589504,96060.0,96045.0,0.43382797]
[1735309998179,0.052107,96075.0,96055.0,0.052118]
[1735309998378,0.05211,96070.0,96045.0,0.43382797]
[1735309998683,0.15589504,96080.0,96045.0,0.43382797]
[1735309998684,0.001,96055.0,96045.0,0.009]
[1735309999068,0.20801104,96060.0,96025.0,0.0499]
[1735309999069,0.15689504,96060.0,96025.0,0.0499]
[1735309999368,0.15689504,96060.0,96022.0,0.052136]
[1735309999369,0.15589504,96035.0,96022.0,0.052136]
[1735309999571,0.1541454,96054.0,96020.0,0.15589504]
[1735309999773,0.1541454,96054.0,96042.0,0.052125]
[1735310000089,0.1541454,96054.0,96003.0,0.0499]
[1735310000090,0.15589504,96052.0,96032.0,0.05213]
[1735310000272,0.15589504,96052.0,96010.0,0.15589504]
[1735310000577,0.15589504,96052.0,96036.0,0.052128]
[1735310000780,0.15589504,96050.0,96010.0,0.15589504]
[1735310000981,0.15589504,96050.0,96034.0,0.052129]
[1735310001172,0.06363618,96051.0,96025.0,0.001]
[1735310001374,0.15209871,96044.0,96022.0,0.052136]
[1735310001580,0.15209871,96044.0,96034.0,0.052129]
[1735310001786,0.15209871,96044.0,96003.0,0.0499]
[1735310001981,0.15589504,96040.0,96020.0,0.052137]
[1735310002173,0.15589504,96040.0,96010.0,0.01]
[1735310002373,0.052127,96039.0,96023.0,0.052135]
[1735310002890,0.3,96039.0,96011.0,0.052141]
[1735310003183,0.15589504,96020.0,95970.0,0.00335775]
[1735310003385,0.15589504,96000.0,95983.0,0.052157]
[1735310003585,0.052141,96013.0,95991.0,0.052153]
[1735310003886,0.052141,96013.0,95995.0,0.05215]
[1735310004075,0.15589504,96010.0,95995.0,0.05215]
[1735310004274,0.15589504,96010.0,95963.0,0.0508]
[1735310004474,0.052143,96009.0,95989.0,0.052153]
[1735310004676,0.15589504,96000.0,95989.0,0.052153]
[1735310004978,0.052143,96009.0,95991.0,0.001]
[1735310005286,0.052143,96009.0,95963.0,0.0508]
[1735310005287,0.001,96010.0,95992.0,0.052152]
[1735310005487,0.15689504,96010.0,95992.0,0.052152]
[1735310005674,0.052138,96009.0,95984.0,0.052151]
[1735310006274,0.15589504,96000.0,95984.0,0.052151]
[1735310006585,0.052141,96005.0,95984.0,0.052151]
[1735310006975,0.052141,96005.0,95989.0,0.002]
[1735310007176,0.15589504,96010.0,95989.0,0.054148]
[1735310007372,0.15589504,96020.0,95989.0,0.002]
[1735310007580,0.15209871,96024.0,95990.0,0.15589504]
[1735310007783,0.001,96000.0,95999.0,0.052143]
[1735310008179,0.004,96005.0,95980.0,0.15589504]
[1735310008374,0.004,96005.0,96004.0,0.052141]
[1735310009381,0.15589504,96030.0,95991.0,0.0482]
[1735310009588,0.15209871,96038.0,96012.0,0.052136]
[1735310009787,0.052124,96036.0,96012.0,0.052136]
[1735310010087,0.15589504,96030.0,96012.0,0.052136]
[1735310010407,0.15209871,96046.0,96010.0,0.15589504]
[1735310010779,0.15209871,96046.0,96021.0,0.052131]
[1735310010984,0.005,96036.0,96021.0,0.052131]
[1735310011180,0.005,96036.0,96010.0,0.15589504]
[1735310011381,0.005,96036.0,96013.0,0.052135]
[1735310011581,0.052123,96037.0,96013.0,0.052135]
[1735310011582,0.052126,96031.0,96013.0,0.052135]
[1735310011780,0.05212,96043.0,96010.0,0.15589504]
[1735310011987,0.052123,96037.0,96021.0,0.052131]
[1735310013087,0.052123,96037.0,96002.0,0.05]
[1735310013282,0.008,96036.0,96002.0,0.35]
[1735310013482,0.008,96036.0,96034.0,0.052124]
[1735310014181,0.011,96037.0,96034.0,0.052124]
[1735310014490,0.12071232,96049.0,96020.0,0.15589504]
[1735310014787,0.12071232,96049.0,96034.0,0.002]
[1735310014976,0.05419305,96059.0,96041.0,0.02474378]
[1735310015577,0.00208205,96059.0,96041.0,0.02474378]
[1735310015784,0.052122,96038.0,96034.0,0.00196]
[1735310015987,0.052123,96036.0,96034.0,0.00196]
[1735310016287,0.15589504,96051.0,96010.0,0.15589504]
[1735310016288,0.001,96037.0,96010.0,0.15589504]
[1735310016486,0.052112,96056.0,96035.0,0.052124]
[1735310016680,0.052112,96056.0,96036.0,0.0469]
[1735310016993,0.006,96038.0,96037.0,0.052123]
[1735310017297,0.00208205,96059.0,96048.0,0.052116]
[1735310017898,0.00208205,96059.0,96009.0,0.06]
[1735310018082,0.00208205,96059.0,95934.0,0.104]
[1735310018083,0.002,96038.0,96020.0,0.15589504]
[1735310018281,0.009,96038.0,96037.0,0.001]
[1735310018586,0.061122,96038.0,96037.0,0.001]
[1735310018785,0.059122,96038.0,96037.0,0.001]
[1735310019791,0.052122,96038.0,96022.0,0.0509]
[1735310020388,0.062122,96038.0,96037.0,0.001]
[1735310020787,0.303,96038.0,95980.0,0.01034318]
[1735310020991,0.15589504,96010.0,95986.0,0.0509]
[1735310021182,0.303,96038.0,95987.0,0.052149]
[1735310021183,0.15589504,96000.0,95987.0,0.052149]
[1735310021383,0.052139,96007.0,95991.0,0.052147]
[1735310021585,0.15589504,96010.0,95986.0,0.0509]
[1735310021785,0.052123,96036.0,95986.0,0.0509]
[1735310021786,0.052144,95997.0,95986.0,0.0509]
[1735310021987,0.052139,96008.0,95995.0,0.052145]
[1735310022288,0.15589504,96030.0,96011.0,0.052137]
[1735310022484,0.15589504,96030.0,95986.0,0.3509]
[1735310022485,0.15209871,96016.0,95986.0,0.0509]
[1735310022682,0.15209871,96016.0,95990.0,0.15589504]
[1735310023088,0.15209871,96016.0,96007.0,0.052138]
[1735310023285,0.003,96008.0,96007.0,0.052138]
[1735310023583,0.001,95997.0,95995.0,0.052145]
[1735310024291,0.05214,96006.0,95995.0,0.052145]
[1735310025294,0.002,95997.0,95995.0,0.052145]
[1735310026190,0.052147,95992.0,95986.0,0.0509]
[1735310026598,0.05321623,95996.0,95986.0,0.10305]
[1735310026895,0.05321623,95996.0,95995.0,0.001]
[1735310027281,0.05321623,95996.0,95986.0,0.0509]
[1735310027484,0.05321623,96000.0,95986.0,0.0509]
[1735310027681,0.05321623,96000.0,95997.0,0.052144]
[1735310028698,0.05321623,96005.0,95997.0,0.052144]
[1735310028899,0.05321623,96005.0,95986.0,0.0509]
[1735310029098,0.006,95996.0,95995.0,0.053145]
[1735310029495,0.006,95996.0,95995.0,0.001]
[1735310029693,0.21503804,96000.0,95997.0,0.001]
[1735310029893,0.007,96000.0,95999.0,0.052143]
[1735310030093,0.05321623,96005.0,95997.0,0.001]
[1735310030288,0.05321623,96005.0,96004.0,0.052141]
[1735310030605,0.15589504,96020.0,96011.0,0.052137]
[1735310030895,0.27760641,96019.0,96011.0,0.052137]
[1735310031097,0.2766464,96019.0,96013.0,0.052135]
[1735310031802,0.2766464,96019.0,95997.0,0.001]
[1735310031993,0.15589504,96020.0,96002.0,0.052141]
[1735310031994,0.052138,96009.0,96002.0,0.052141]
[1735310032391,0.052141,96004.0,95993.0,0.052146]
[1735310032596,0.003,96005.0,95986.0,0.0509]
[1735310032793,0.052149,95989.0,95953.0,0.0522822]
[1735310032989,0.15589504,95996.0,95953.0,0.06248893]
[1735310033192,0.15589504,95996.0,95961.0,0.05372706]
[1735310033399,0.052141,96005.0,95993.0,0.052146]
[1735310033592,0.15589504,96003.0,95974.0,0.0471]
[1735310033893,0.052142,96001.0,95993.0,0.052146]
[1735310034091,0.052142,96001.0,95969.0,0.3329903]
[1735310034293,0.15589504,96003.0,95969.0,0.0329903]
[1735310034294,0.052144,95998.0,95969.0,0.0329903]
[1735310034489,0.15589504,95990.0,95973.0,0.002]
[1735310034690,0.052144,95998.0,95985.0,0.052151]
[1735310034889,0.052147,95993.0,95985.0,0.052151]
[1735310035097,0.15589504,96000.0,95975.0,0.052156]
[1735310035400,0.15589504,96000.0,95973.0,0.002]
[1735310035401,0.15589504,96000.0,95993.0,0.052146]
[1735310035598,0.15589504,96000.0,95975.0,0.052156]
[1735310035799,0.21555301,95997.0,95993.0,0.052146]
[1735310036401,0.21555301,95997.0,95969.0,0.002]
[1735310036402,0.21555301,95997.0,95995.0,0.052145]
[1735310037097,0.21855301,95997.0,95995.0,0.052145]
[1735310037400,0.003,95997.0,95995.0,0.052145]
[1735310037596,0.008,95997.0,95995.0,0.052145]
[1735310037900,0.011,95997.0,95995.0,0.052145]
[1735310039196,0.006,95997.0,95972.0,0.1498]
[1735310039498,0.008,95997.0,95996.0,0.052145]
[1735310039900,0.006,95997.0,95996.0,0.052145]
[1735310040105,0.001,95997.0,95996.0,0.352145]
[1735310040418,0.21555301,96006.0,96005.0,0.05214]
[1735310040805,0.21555301,96006.0,95979.0,0.01049872]
[1735310040995,0.001,95997.0,95979.0,0.01049872]
[1735310041202,0.001,95997.0,95995.0,0.052145]
[1735310042093,0.004,95997.0,95995.0,0.052145]
[1735310042493,0.003,95997.0,95995.0,0.052145]
[1735310042693,0.005,95997.0,95996.0,0.052145]
[1735310042900,0.057144,95997.0,95995.0,0.001]
[1735310043301,0.060144,95997.0,95995.0,0.001]
[1735310043803,0.065144,95997.0,95995.0,0.002]
[1735310044806,0.013,95997.0,95972.0,0.0485]
[1735310045005,0.15589504,95990.0,95972.0,0.0485]
[1735310045203,0.20804304,95990.0,95985.0,0.052151]
[1735310045806,0.15589504,95990.0,95985.0,0.052151]
[1735310046007,0.052151,95986.0,95978.0,0.052154]
[1735310046404,0.052151,95986.0,95979.0,0.052154]
[1735310046907,0.15589504,95988.0,95984.0,0.052151]
[1735310047294,0.10286383,95989.0,95984.0,0.052151]
[1735310047498,0.05071483,95989.0,95984.0,0.052151]
[1735310047699,0.05071483,95989.0,95960.0,0.15589504]
[1735310047900,0.05071483,95989.0,95961.0,0.30156306]
[1735310048201,0.05071483,95989.0,95970.0,0.15589504]